bitfinex/quotes_BTCUSD_20250910
["timestamp","ask_amount","ask_price","bid_price","bid_amount"]
[1757483498633,1.70078073,111830.0,111820.0,7.011725]
[1757483498837,1.84946073,111830.0,111820.0,7.011725]
[1757483499851,1.84652073,111830.0,111820.0,7.011725]
[1757483500259,1.85281285,111830.0,111820.0,7.011725]
[1757483501854,1.85605285,111830.0,111820.0,7.011725]
[1757483504311,1.84976073,111830.0,111820.0,7.011725]
[1757483504518,1.85605893,111830.0,111820.0,7.011725]
[1757483506402,1.74065157,111830.0,111820.0,7.011725]
[1757483506801,1.74915157,111830.0,111820.0,7.011725]
[1757483507243,1.81791157,111830.0,111820.0,7.011725]
[1757483508025,1.81791279,111830.0,111820.0,7.011725]
[1757483509220,1.81791279,111830.0,111820.0,7.009765]
[1757483509719,1.81791279,111830.0,111820.0,7.011735]
[1757483509991,1.81791279,111830.0,111820.0,6.41856287]
[1757483509992,1.98321878,111830.0,111820.0,6.41856287]
[1757483510118,2.1237501,111830.0,111820.0,6.32163118]
[1757483510339,2.00834868,111830.0,111820.0,6.32163118]
[1757483510539,2.00834868,111830.0,111820.0,6.081316]
[1757483510738,2.00834868,111830.0,111820.0,5.83260151]
[1757483511158,2.1237501,111830.0,111820.0,5.51234283]
[1757483511348,2.1237501,111830.0,111820.0,5.31819739]
[1757483511547,2.00834868,111830.0,111820.0,5.11015562]
[1757483511810,2.1237501,111830.0,111820.0,5.11015562]
[1757483512113,2.00834868,111830.0,111820.0,5.11015562]
[1757483512317,1.99980868,111830.0,111820.0,5.11015562]
[1757483513205,2.01383591,111830.0,111820.0,5.11015562]
[1757483514744,2.12923733,111830.0,111820.0,5.11015562]
[1757483515142,2.26625713,111830.0,111820.0,4.6826178]
[1757483515352,2.31625713,111830.0,111820.0,4.47579079]
[1757483515552,2.31625713,111830.0,111820.0,4.26813936]
[1757483515753,2.31625713,111830.0,111820.0,4.11042336]
[1757483516072,2.31625713,111830.0,111820.0,3.93556704]
[1757483516463,2.31625713,111830.0,111820.0,3.60665796]
[1757483517388,2.31625713,111830.0,111820.0,3.16039479]
[1757483517846,2.31630338,111830.0,111820.0,3.16039479]
[1757483519219,2.16766338,111830.0,111820.0,3.16039479]
[1757483519459,2.31630338,111830.0,111820.0,3.16039479]
[1757483522409,2.16766338,111830.0,111820.0,3.16039479]
[1757483522609,2.31630338,111830.0,111820.0,3.16039479]
[1757483523430,2.30227615,111830.0,111820.0,3.16039479]
[1757483525074,2.31630419,111830.0,111820.0,3.16039479]
[1757483525492,2.81629886,111830.0,111820.0,3.16039479]
[1757483527083,2.81629886,111830.0,111820.0,2.75231889]
[1757483527227,2.80779886,111830.0,111820.0,2.75231889]
[1757483528297,2.83232421,111830.0,111820.0,2.09712298]
[1757483528504,2.84082421,111830.0,111820.0,1.9770584]
[1757483528704,2.69218421,111830.0,111820.0,1.7706171]
[1757483528921,2.84078421,111830.0,111820.0,1.7706171]
[1757483529070,2.84078421,111830.0,111820.0,1.52609586]
[1757483529314,2.66564362,111830.0,111820.0,1.43336508]
[1757483529537,2.81424362,111830.0,111820.0,1.43336508]
[1757483529750,2.80421558,111830.0,111820.0,1.43336508]
[1757483530523,2.79821558,111830.0,111820.0,1.43336508]
[1757483530726,2.80521558,111830.0,111820.0,1.43336508]
[1757483531140,2.80721558,111830.0,111820.0,1.43336508]
[1757483531548,2.80521558,111830.0,111820.0,1.43336508]
[1757483531750,2.80821558,111830.0,111820.0,1.43336508]
[1757483532060,2.65961558,111830.0,111820.0,1.43336508]
[1757483532245,2.80821558,111830.0,111820.0,1.43336508]
[1757483533173,2.14850827,111830.0,111820.0,1.43833508]
[1757483533380,2.42768169,111830.0,111820.0,1.43833508]
[1757483533585,2.4276958,111830.0,111820.0,1.43833508]
[1757483533949,2.44172339,111830.0,111820.0,1.43833508]
[1757483534144,2.43172339,111830.0,111820.0,1.43833508]
[1757483534449,2.43672339,111830.0,111820.0,1.43833508]
[1757483535018,2.43372339,111830.0,111820.0,1.43833508]
[1757483535360,2.43472339,111830.0,111820.0,1.43833508]
[1757483535768,2.52663938,111830.0,111820.0,1.43833508]
[1757483535969,2.52463938,111830.0,111820.0,1.43833508]
[1757483536213,2.52463938,111830.0,111820.0,1.43933508]
[1757483536541,2.47463938,111830.0,111820.0,1.43933508]
[1757483536693,2.47463938,111830.0,111820.0,1.43638508]
[1757483536694,2.55182928,111830.0,111820.0,1.43638508]
[1757483536899,2.6703407,111830.0,111820.0,1.43436508]
[1757483537262,2.81839728,111830.0,111820.0,1.43436508]
[1757483537693,2.78976728,111830.0,111820.0,1.43638508]
[1757483539276,2.80535848,111830.0,111820.0,1.43638508]
[1757483540560,2.75538066,111830.0,111820.0,1.43638508]
[1757483540806,2.80538066,111830.0,111820.0,1.43638508]
[1757483541011,2.80538066,111830.0,111820.0,1.43436508]
[1757483541152,2.68997924,111830.0,111820.0,1.43436508]
[1757483543888,2.69000694,111830.0,111820.0,1.43638508]
[1757483544684,2.69850694,111830.0,111820.0,1.43638508]
[1757483546809,2.69850694,111830.0,111820.0,1.01644904]
[1757483547018,2.86706371,111830.0,111820.0,0.60058803]
[1757483547361,4.62275655,111830.0,111820.0,0.32581774]
[1757483547568,4.62275655,111830.0,111820.0,0.21954177]
[1757483548007,4.62275655,111830.0,111820.0,0.20935996]
[1757483548218,0.51892288,111780.0,111770.0,0.07356212]
[1757483548424,1.22752939,111780.0,111770.0,0.07356212]
[1757483548630,1.22752939,111780.0,111770.0,0.07558212]
[1757483548631,1.48439512,111780.0,111770.0,0.07558212]
[1757483548838,1.49068493,111780.0,111770.0,0.07558212]
[1757483549067,1.51758985,111780.0,111770.0,0.07558212]
[1757483549529,1.51758985,111780.0,111770.0,0.00497]
[1757483549530,1.48637014,111780.0,111770.0,0.00497]
[1757483549754,1.48637014,111780.0,111770.0,0.0054329]
[1757483550207,1.50040303,111780.0,111770.0,0.0054329]
[1757483550676,2.06716377,111780.0,111770.0,0.0054329]
[1757483551286,2.05877354,111780.0,111770.0,0.0054329]
[1757483551517,2.04474065,111780.0,111770.0,0.0054329]
[1757483551941,1.89590065,111780.0,111770.0,0.0319629]
[1757483552202,1.99284836,111780.0,111770.0,0.0319629]
[1757483554076,1.84400836,111780.0,111770.0,0.0319629]
[1757483554333,1.99284836,111780.0,111770.0,0.0319629]
[1757483554595,1.99284836,111780.0,111770.0,0.0054329]
[1757483554885,2.07626435,111780.0,111770.0,0.0054329]
[1757483555322,2.08143435,111780.0,111770.0,0.0004629]
[1757483555584,2.5030476,111780.0,111770.0,0.0004629]
[1757483555817,2.53698099,111780.0,111770.0,0.0004629]
[1757483556730,2.53898099,111780.0,111770.0,0.0004629]
[1757483556945,2.44468099,111780.0,111770.0,0.0004629]
[1757483558126,2.46884434,111780.0,111770.0,0.0004629]
[1757483558805,2.47084434,111780.0,111770.0,0.0004629]
[1757483560359,1.06898693,111740.0,111730.0,0.01295]
[1757483560550,1.85631785,111740.0,111730.0,0.01299629]
[1757483560746,2.00739785,111740.0,111730.0,0.01501629]
[1757483561679,2.00739785,111740.0,111730.0,0.01701629]
[1757483561888,2.03431086,111740.0,111730.0,0.01701629]
[1757483562097,2.03531086,111740.0,111730.0,0.02101629]
[1757483563144,1.88421794,111740.0,111730.0,0.02101629]
[1757483563350,2.53529794,111740.0,111730.0,0.02101629]
[1757483563564,2.54933507,111740.0,111730.0,0.02101629]
[1757483566254,2.39825507,111740.0,111730.0,0.02101629]
[1757483566386,2.66513661,111740.0,111730.0,0.02101629]
[1757483566778,2.67425875,111740.0,111730.0,0.02101629]
[1757483566979,2.52329875,111740.0,111730.0,0.02101629]
[1757483567181,2.67421875,111740.0,111730.0,0.02101629]
[1757483567861,2.17421875,111740.0,111730.0,0.02101629]
[1757483568256,2.02329875,111740.0,111730.0,0.02101629]
[1757483568419,2.17421875,111740.0,111730.0,0.02101629]
[1757483569249,2.17417875,111740.0,111730.0,0.02101629]
[1757483571421,2.02329875,111740.0,111730.0,0.02101629]
[1757483571641,2.17413875,111740.0,111730.0,0.02101629]
[1757483572272,2.02329875,111740.0,111730.0,0.02101629]
[1757483572549,1.61975263,111740.0,111730.0,0.05260629]
[1757483572757,1.6057155,111740.0,111730.0,0.05260629]
[1757483572960,0.83182998,111740.0,111730.0,0.22596848]
[1757483573172,1.17186998,111740.0,111730.0,0.22596848]
[1757483577925,1.17174998,111740.0,111730.0,0.40497143]
[1757483578395,1.17174998,111740.0,111730.0,0.22596848]
[1757483578994,1.17174998,111740.0,111730.0,0.05260629]
[1757483580209,1.17174998,111740.0,111730.0,0.22596848]
[1757483583059,1.17174998,111740.0,111730.0,0.02101629]
[1757483585610,1.34511217,111740.0,111730.0,0.02101629]
[1757483587185,1.34511217,111740.0,111730.0,0.01806629]
[1757483587186,1.35032217,111740.0,111730.0,0.01806629]
[1757483587623,1.5293091,111740.0,111730.0,0.01806629]
[1757483587846,1.70267129,111740.0,111730.0,0.01604629]
[1757483588041,1.5293091,111740.0,111730.0,0.01604629]
[1757483589220,1.5293091,111740.0,111730.0,0.01812629]
[1757483589877,1.5293091,111740.0,111730.0,0.01604629]
[1757483590373,1.35594691,111740.0,111730.0,0.01604629]
[1757483590562,1.5293091,111740.0,111730.0,0.01604629]
[1757483590779,1.70267129,111740.0,111730.0,0.01604629]
[1757483591016,1.91904327,111740.0,111730.0,0.01604629]
[1757483591217,1.97283371,111740.0,111730.0,0.01604629]
[1757483592105,1.97291146,111740.0,111730.0,0.01604629]
[1757483593036,1.91223168,111740.0,111730.0,0.01604629]
[1757483593248,1.83435264,111740.0,111730.0,0.01604629]
[1757483593819,1.86488264,111740.0,111730.0,0.01604629]
[1757483595288,1.66099045,111740.0,111730.0,0.01604629]
[1757483595504,1.29090893,111740.0,111730.0,0.01815629]
[1757483595707,1.26512674,111740.0,111730.0,0.01815629]
[1757483595925,1.44151893,111740.0,111730.0,0.01815629]
[1757483596289,1.43522979,111740.0,111730.0,0.01815629]
[1757483596485,1.52714578,111740.0,111730.0,0.01815629]
[1757483597316,1.07782067,111740.0,111730.0,0.02114629]
[1757483597696,0.98590468,111740.0,111730.0,0.02114629]
[1757483597920,1.15926687,111740.0,111730.0,0.02114629]
[1757483598105,0.83514468,111740.0,111730.0,0.02114629]
[1757483598363,1.14522992,111740.0,111730.0,0.02114629]
[1757483598816,0.97182773,111740.0,111730.0,0.02114629]
[1757483599034,0.99446992,111740.0,111730.0,0.02114629]
[1757483599272,1.14518992,111740.0,111730.0,0.02114629]
[1757483599498,1.14518992,111740.0,111730.0,0.20014924]
[1757483599718,0.97182773,111740.0,111730.0,0.20014924]
[1757483599964,0.97182773,111740.0,111730.0,0.02114629]
[1757483600424,0.57902,111740.0,111730.0,0.37574896]
[1757483600625,0.57902,111740.0,111730.0,0.37351143]
[1757483603618,0.57902,111740.0,111730.0,0.19715924]
[1757483603619,0.58105,111740.0,111730.0,0.19715924]
[1757483603828,0.57902,111740.0,111730.0,0.37351143]
[1757483606629,0.57902,111740.0,111730.0,0.44610061]
[1757483607269,0.57052,111740.0,111730.0,0.44610061]
[1757483607737,0.57052,111740.0,111730.0,0.37351143]
[1757483608680,0.151,111740.0,111730.0,0.37351143]
[1757483608866,0.30196,111740.0,111730.0,0.37351143]
[1757483610329,0.30196,111740.0,111730.0,0.20014924]
[1757483610533,0.30196,111740.0,111730.0,0.37351143]
[1757483611594,0.30188,111740.0,111730.0,0.37351143]
[1757483615192,0.30391,111740.0,111730.0,0.37351143]
[1757483615859,0.30391,111740.0,111730.0,0.01604629]
[1757483616067,1.29998308,111740.0,111730.0,0.01604629]
[1757483616912,0.51917978,111740.0,111730.0,0.01815629]
[1757483617122,0.001,111740.0,111730.0,0.42127393]
[1757483617326,0.00074925,111760.0,111750.0,0.17897091]
[1757483617533,0.00074925,111760.0,111750.0,0.8297323]
[1757483617724,0.00074925,111760.0,111750.0,0.31178134]
[1757483617957,0.00074925,111760.0,111750.0,0.18407091]
[1757483618135,0.35580925,111760.0,111740.0,0.18196344]
[1757483618279,0.1512,111750.0,111740.0,0.27387943]
[1757483618479,0.15323,111750.0,111740.0,0.27299943]
[1757483618686,0.15626,111750.0,111730.0,0.39848815]
[1757483618900,0.15626,111750.0,111740.0,0.00211]
[1757483618901,0.15323,111750.0,111740.0,0.00211]
[1757483619095,0.32962219,111750.0,111730.0,0.19799938]
[1757483619298,0.49626,111750.0,111740.0,0.003]
[1757483619540,0.66962219,111750.0,111740.0,0.003]
[1757483619747,0.35,111740.0,111730.0,0.01004629]
[1757483619920,0.52639219,111740.0,111730.0,0.01004629]
[1757483620129,0.62033818,111740.0,111730.0,0.01004629]
[1757483620326,0.99649292,111740.0,111730.0,0.01004629]
[1757483620527,0.89895219,111740.0,111730.0,0.01004629]
[1757483620764,1.07793912,111740.0,111730.0,0.01004629]
[1757483620969,0.90457693,111740.0,111730.0,0.01004629]
[1757483621208,1.05625693,111740.0,111730.0,0.01004629]
[1757483621449,1.40298131,111740.0,111730.0,0.01204629]
[1757483621667,1.58681329,111740.0,111730.0,0.01204629]
[1757483622107,1.58681329,111740.0,111730.0,0.01404629]
[1757483622330,1.24008891,111740.0,111730.0,0.01404629]
[1757483623000,1.90059529,111740.0,111730.0,0.01404629]
[1757483623477,1.90059529,111740.0,111730.0,0.01204629]
[1757483623478,1.55387091,111740.0,111730.0,0.01204629]
[1757483623685,1.90059529,111740.0,111730.0,0.01204629]
[1757483623887,1.90909529,111740.0,111730.0,0.01204629]
[1757483624103,1.90059529,111740.0,111730.0,0.01204629]
[1757483624313,1.90059529,111740.0,111730.0,0.01004629]
[1757483624314,1.40219091,111740.0,111730.0,0.01004629]
[1757483624548,1.8093593,111740.0,111730.0,0.01304629]
[1757483624961,1.8093593,111740.0,111730.0,0.01004629]
[1757483625172,1.46263492,111740.0,111730.0,0.01004629]
[1757483625408,1.46263492,111740.0,111730.0,0.01204629]
[1757483625632,1.48023316,111740.0,111730.0,0.01204629]
[1757483625865,1.90211529,111740.0,111730.0,0.01004629]
[1757483626294,1.56389091,111740.0,111730.0,0.01004629]
[1757483626508,1.81184592,111740.0,111730.0,0.01004629]
[1757483626745,1.92744591,111740.0,111730.0,0.01004629]
[1757483626956,1.94675381,111740.0,111730.0,0.01004629]
[1757483627179,1.44453745,111740.0,111730.0,0.01004629]
[1757483627395,1.82445382,111740.0,111730.0,0.01004629]
[1757483627838,1.94005381,111740.0,111730.0,0.01004629]
[1757483628265,1.57646443,111740.0,111730.0,0.01004629]
[1757483628511,1.9232644,111740.0,111730.0,0.01004629]
[1757483628717,1.9242644,111740.0,111730.0,0.01004629]
[1757483629374,1.9327644,111740.0,111730.0,0.01004629]
[1757483629536,2.02999727,111740.0,111730.0,0.01004629]
[1757483630227,1.87499727,111740.0,111730.0,0.01004629]
[1757483630436,1.30023498,111710.0,111700.0,0.0004]
[1757483630611,1.94038407,111710.0,111700.0,0.00044629]
[1757483630863,1.97819407,111710.0,111700.0,0.00044629]
[1757483631294,2.21848065,111710.0,111700.0,0.00044629]
[1757483631502,2.33520647,111710.0,111700.0,0.00044629]
[1757483631633,2.47007998,111710.0,111700.0,0.00244629]
[1757483631848,2.42007998,111710.0,111700.0,0.00244629]
[1757483632048,2.46157998,111710.0,111700.0,0.00044629]
[1757483632243,0.6441776,111700.0,111690.0,0.00102869]
[1757483632476,1.11887785,111700.0,111690.0,0.00116772]
[1757483632683,1.15668785,111700.0,111690.0,0.00116772]
[1757483632890,1.17073194,111700.0,111690.0,0.00116772]
[1757483633573,1.19051515,111700.0,111690.0,0.00116772]
[1757483633761,1.17073194,111700.0,111690.0,0.00116772]
[1757483633996,1.13113194,111700.0,111690.0,0.00116772]
[1757483634213,1.50232689,111700.0,111690.0,0.00116772]
[1757483634417,1.36384161,111700.0,111690.0,0.00116772]
[1757483634634,1.33022737,111700.0,111690.0,0.00116772]
[1757483634845,1.21139579,111700.0,111690.0,0.00116772]
[1757483635100,0.86590579,111700.0,111690.0,0.00116772]
[1757483635309,0.86890579,111700.0,111690.0,0.00116772]
[1757483635510,0.86890579,111700.0,111690.0,0.00319772]
[1757483635511,1.05731579,111700.0,111690.0,0.00319772]
[1757483635712,1.20926579,111700.0,111690.0,0.00319772]
[1757483635881,1.21135579,111700.0,111690.0,0.00419772]
[1757483636219,1.21235579,111700.0,111690.0,0.00419772]
[1757483636938,1.21536579,111700.0,111690.0,0.00216772]
[1757483637166,1.20686579,111700.0,111690.0,0.00216772]
[1757483637418,1.20385579,111700.0,111690.0,0.00419772]
[1757483637627,1.20176579,111700.0,111690.0,0.00733772]
[1757483638048,0.9934511,111700.0,111690.0,0.00733772]
[1757483638256,1.20176579,111700.0,111690.0,0.00733772]
[1757483638459,0.92039878,111700.0,111690.0,0.00733772]
[1757483638870,0.89113511,111700.0,111690.0,0.00733772]
[1757483639073,1.0984498,111700.0,111690.0,0.00733772]
[1757483639293,1.08540571,111700.0,111690.0,0.00633772]
[1757483639702,1.08540571,111700.0,111690.0,0.00733772]
[1757483639923,0.87709102,111700.0,111690.0,0.00633772]
[1757483640139,1.08540571,111700.0,111690.0,0.00633772]
[1757483640349,1.08749571,111700.0,111690.0,0.00519772]
[1757483640759,1.08649571,111700.0,111690.0,0.00519772]
[1757483641255,1.08649571,111700.0,111690.0,0.00619772]
[1757483641472,1.1814217,111700.0,111690.0,0.00416772]
[1757483641703,1.2141317,111700.0,111690.0,0.00316772]
[1757483641927,1.2141317,111700.0,111690.0,0.00416772]
[1757483643035,1.2226317,111700.0,111690.0,0.00416772]
[1757483643479,1.23930353,111700.0,111690.0,0.00416772]
[1757483643996,1.28930353,111700.0,111690.0,0.00416772]
[1757483644247,1.28080353,111700.0,111690.0,0.00416772]
[1757483644465,1.33080353,111700.0,111690.0,0.00416772]
[1757483645152,1.28080353,111700.0,111690.0,0.00316772]
[1757483645360,1.33280353,111700.0,111690.0,0.00316772]
[1757483645874,1.33280353,111700.0,111690.0,0.00116772]
[1757483646095,1.33580353,111700.0,111690.0,0.00116772]
[1757483646323,0.69419364,111690.0,111680.0,0.0104]
[1757483646554,1.74995865,111690.0,111680.0,0.01044629]
[1757483646796,1.77126459,111690.0,111680.0,0.01044629]
[1757483647029,1.80397459,111690.0,111680.0,0.01044629]
[1757483647255,1.88451813,111690.0,111680.0,0.01044629]
[1757483647749,1.88551813,111690.0,111680.0,0.01044629]
[1757483648211,1.88651813,111690.0,111680.0,0.01044629]
[1757483650773,1.89696442,111690.0,111680.0,0.01044629]
[1757483651183,1.92102898,111690.0,111680.0,0.01044629]
[1757483651474,1.92729756,111690.0,111680.0,0.01044629]
[1757483651719,1.96325311,111690.0,111680.0,0.01044629]
[1757483652209,1.99547091,111690.0,111680.0,0.01044629]
[1757483652442,2.01801599,111690.0,111680.0,0.01044629]
[1757483654229,1.99395143,111690.0,111680.0,0.01044629]
[1757483655129,1.17739778,111680.0,111670.0,0.0004]
[1757483655349,1.59277127,111680.0,111670.0,0.0004463]
[1757483655560,1.62991127,111680.0,111670.0,0.0004463]
[1757483655740,1.60581649,111680.0,111670.0,0.0004463]
[1757483656428,1.6345338,111680.0,111670.0,0.0004463]
[1757483656910,1.73283174,111680.0,111670.0,0.0004463]
[1757483657123,1.70070537,111680.0,111670.0,0.0004463]
[1757483657358,1.90902006,111680.0,111670.0,0.0004463]
[1757483657641,1.70070537,111680.0,111670.0,0.0004463]
[1757483658063,1.70970064,111680.0,111670.0,0.0004463]
[1757483658287,1.71170064,111680.0,111670.0,0.0004463]
[1757483658727,1.70970064,111680.0,111670.0,0.0004463]
[1757483658952,1.50138595,111680.0,111670.0,0.0004463]
[1757483659142,1.91801533,111680.0,111670.0,0.0004463]
[1757483659444,0.80425779,111650.0,111640.0,0.0004]
[1757483659687,2.11463602,111650.0,111640.0,0.00086318]
[1757483659898,2.15177602,111650.0,111640.0,0.00086318]
[1757483660343,0.85258852,111640.0,111630.0,1e-08]
[1757483660531,1.44126696,111640.0,111630.0,8.281e-05]
[1757483660797,1.19430593,111620.0,111610.0,1e-08]
[1757483661005,1.97652329,111620.0,111610.0,4.635e-05]
[1757483661230,1.09433804,111600.0,111590.0,0.0004]
[1757483661454,1.76879595,111600.0,111590.0,0.0004]
[1757483661663,1.9527093,111600.0,111590.0,0.00044625]
[1757483661910,2.04196399,111600.0,111590.0,0.00044625]
[1757483662130,2.17671412,111600.0,111590.0,0.00044625]
[1757483662348,1.89474576,111600.0,111590.0,0.00250625]
[1757483662760,1.89262576,111600.0,111590.0,0.00250625]
[1757483662990,1.75048245,111600.0,111590.0,0.00546625]
[1757483663212,1.52295431,111600.0,111590.0,0.00546625]
[1757483663430,1.68015431,111600.0,111590.0,0.00546625]
[1757483663644,1.890589,111600.0,111590.0,0.00044625]
[1757483663854,1.889589,111600.0,111590.0,0.00250625]
[1757483664271,1.889589,111600.0,111590.0,0.00746625]
[1757483664272,2.387469,111600.0,111590.0,0.00746625]
[1757483664907,2.387469,111600.0,111590.0,0.00450625]
[1757483665117,2.387469,111600.0,111590.0,0.00746625]
[1757483665324,2.38738745,111600.0,111590.0,0.00546625]
[1757483665515,1.67907276,111600.0,111590.0,0.00546625]
[1757483665931,1.68007276,111600.0,111590.0,0.00746625]
[1757483666578,1.67907276,111600.0,111590.0,0.00746625]
[1757483667049,1.31455807,111600.0,111590.0,0.00546625]
[1757483667283,1.67903276,111600.0,111590.0,0.00546625]
[1757483667502,1.68003276,111600.0,111590.0,0.00846625]
[1757483667713,1.68103276,111600.0,111590.0,0.01146625]
[1757483668376,1.88934745,111600.0,111590.0,0.01146625]
[1757483669996,1.68103276,111600.0,111590.0,0.01146625]
[1757483670883,1.68003276,111600.0,111590.0,0.00846625]
[1757483671338,1.29250661,111600.0,111590.0,0.03995625]
[1757483671567,1.35581068,111600.0,111590.0,0.04295625]
[1757483671768,1.53502214,111600.0,111590.0,0.04295625]
[1757483672321,1.35581068,111600.0,111590.0,0.04295625]
[1757483672769,1.26389469,111600.0,111590.0,0.04295625]
[1757483672987,1.26389469,111600.0,111590.0,0.22442411]
[1757483673146,1.26389469,111600.0,111590.0,0.04295625]
[1757483673714,1.44310615,111600.0,111590.0,0.01146625]
[1757483673850,1.43460615,111600.0,111590.0,0.01146625]
[1757483676086,1.25539469,111600.0,111590.0,0.01146625]
[1757483676297,1.04708,111600.0,111590.0,0.01146625]
[1757483676505,1.25539469,111600.0,111590.0,0.04295625]
[1757483676928,1.43460615,111600.0,111590.0,0.01146625]
[1757483677129,1.22629146,111600.0,111590.0,0.01146625]
[1757483677282,1.43460615,111600.0,111590.0,0.01146625]
[1757483677896,1.04708,111600.0,111590.0,0.01146625]
[1757483678103,1.25539469,111600.0,111590.0,0.01146625]
[1757483678795,0.84708,111600.0,111590.0,0.22442411]
[1757483679002,0.84708,111600.0,111590.0,0.22218377]
[1757483679486,1.05539469,111600.0,111590.0,0.22218377]
[1757483679719,0.84708,111600.0,111590.0,0.22218377]
[1757483679979,0.84608,111600.0,111590.0,0.21918377]
[1757483680244,0.84708,111600.0,111590.0,0.22318377]
[1757483680453,0.50708,111600.0,111590.0,0.22318377]
[1757483680682,0.30608,111600.0,111590.0,0.21618377]
[1757483680917,0.30608,111600.0,111590.0,0.52041445]
[1757483680918,0.15,111600.0,111590.0,0.52041445]
[1757483681152,0.15,111600.0,111590.0,0.31609976]
[1757483681153,0.151,111600.0,111590.0,0.31609976]
[1757483681605,0.151,111600.0,111590.0,0.31209976]
[1757483682089,0.152,111600.0,111590.0,0.31709976]
[1757483682317,0.151,111600.0,111590.0,0.31209976]
[1757483682581,0.151,111600.0,111590.0,0.31709976]
[1757483683030,0.15,111600.0,111590.0,0.31309976]
[1757483683693,0.15,111600.0,111590.0,0.47157976]
[1757483684860,0.15,111600.0,111590.0,0.46857976]
[1757483685327,0.15,111600.0,111590.0,0.31309976]
[1757483685568,0.35831469,111600.0,111590.0,0.28160976]
[1757483686719,0.87959615,111600.0,111590.0,0.00544625]
[1757483686952,0.89946209,111600.0,111590.0,0.00544625]
[1757483687454,0.6911474,111600.0,111590.0,0.00544625]
[1757483687688,1.02348808,111600.0,111590.0,0.00044625]
[1757483688157,1.02548808,111600.0,111590.0,0.01044625]
[1757483688389,1.08775037,111600.0,111590.0,0.00544625]
[1757483688610,1.08775037,111600.0,111590.0,0.00744625]
[1757483688837,1.08675037,111600.0,111590.0,0.00244625]
[1757483689298,1.08675037,111600.0,111590.0,0.00444625]
[1757483692217,1.10604609,111600.0,111590.0,0.00444625]
[1757483693387,1.10604609,111600.0,111590.0,0.18578377]
[1757483693388,0.72602166,111600.0,111590.0,0.18578377]
[1757483693594,0.86184594,111600.0,111590.0,0.18893377]
[1757483693803,0.99970443,111600.0,111590.0,0.18578377]
[1757483694013,0.99970443,111600.0,111590.0,0.00655625]
[1757483694460,0.99970443,111600.0,111590.0,0.18578377]
[1757483696690,0.86164594,111600.0,111590.0,0.18893377]
[1757483697336,0.99743443,111600.0,111590.0,0.18893377]
[1757483697781,0.86164594,111600.0,111590.0,0.18893377]
[1757483697958,0.99743443,111600.0,111590.0,0.18893377]
[1757483698886,0.86164594,111600.0,111590.0,0.18893377]
[1757483700150,0.70672594,111600.0,111590.0,0.18893377]
[1757483700419,0.35,111600.0,111590.0,0.44721825]
[1757483700647,0.2,111600.0,111590.0,0.44721825]
[1757483701125,0.15468,111610.0,111600.0,0.17921146]
[1757483701338,0.15468,111610.0,111600.0,0.1846016]
[1757483701584,0.15468,111610.0,111600.0,0.18447146]
[1757483701799,0.15,111600.0,111590.0,0.18167377]
[1757483702022,0.28578849,111600.0,111590.0,0.18378377]
[1757483702252,0.28678849,111600.0,111590.0,0.18978377]
[1757483702515,0.28578849,111600.0,111590.0,0.18178377]
[1757483702734,0.28785849,111600.0,111590.0,0.18178377]
[1757483703413,0.28785849,111600.0,111590.0,0.00255625]
[1757483703649,0.49099849,111600.0,111590.0,0.00044625]
[1757483703901,1.19487087,111600.0,111590.0,0.00044625]
[1757483704603,1.19487087,111600.0,111590.0,0.00344625]
[1757483705305,1.28678686,111600.0,111590.0,0.00344625]
[1757483705772,1.28678686,111600.0,111590.0,0.00544625]
[1757483706001,1.28678686,111600.0,111590.0,0.00044625]
[1757483706478,1.28678686,111600.0,111590.0,0.00144625]
[1757483706703,1.28678686,111600.0,111590.0,0.00244625]
[1757483707803,1.28678686,111600.0,111590.0,0.00144625]
[1757483709155,1.44122479,111600.0,111590.0,0.00044625]
[1757483709405,1.3054363,111600.0,111590.0,0.00044625]
[1757483709611,1.3054363,111600.0,111590.0,0.00144625]
[1757483710390,1.28867594,111600.0,111590.0,0.00144625]
[1757483710592,1.42446443,111600.0,111590.0,0.00144625]
[1757483712033,1.28867594,111600.0,111590.0,0.00144625]
[1757483713268,1.42446443,111600.0,111590.0,0.00144625]
[1757483714402,1.28867594,111600.0,111590.0,0.00144625]
[1757483716530,1.50048557,111600.0,111590.0,0.00144625]
[1757483716742,1.15288745,111600.0,111590.0,0.00144625]
[1757483717006,1.50048557,111600.0,111590.0,0.00144625]
[1757483718071,1.69105554,111600.0,111590.0,0.00144625]
[1757483719556,1.72130647,111600.0,111590.0,0.00144625]
[1757483719765,2.03547947,111600.0,111590.0,0.00144625]
[1757483720789,1.86120041,111600.0,111590.0,0.00144625]
[1757483721010,2.03499947,111600.0,111590.0,0.00144625]
[1757483721213,1.86120041,111600.0,111590.0,0.00144625]
[1757483721946,1.87379339,111600.0,111590.0,0.00144625]
[1757483723210,2.04759245,111600.0,111590.0,0.00144625]
[1757483724078,1.71982073,111600.0,111590.0,0.00144625]
[1757483724263,1.8519498,111600.0,111590.0,0.00144625]
[1757483724526,1.84924685,111600.0,111590.0,0.00144625]
[1757483724716,1.84932685,111600.0,111590.0,0.00144625]
[1757483725156,1.84928685,111600.0,111590.0,0.00144625]
[1757483725363,1.69536685,111600.0,111590.0,0.00144625]
[1757483725556,1.81717685,111600.0,111590.0,0.00144625]
[1757483728164,1.66325685,111600.0,111590.0,0.00144625]
[1757483728382,1.81709685,111600.0,111590.0,0.00144625]
[1757483728629,1.66325685,111600.0,111590.0,0.00144625]
[1757483728832,1.81705685,111600.0,111590.0,0.00144625]
[1757483729233,1.66325685,111600.0,111590.0,0.00144625]
[1757483729435,1.81701685,111600.0,111590.0,0.00144625]
[1757483729649,1.88593685,111600.0,111590.0,0.00144625]
[1757483730376,1.53833873,111600.0,111590.0,0.00339625]
[1757483730548,1.88593685,111600.0,111590.0,0.00339625]
[1757483730906,1.88593685,111600.0,111590.0,0.00144625]
[1757483731327,1.90270152,111600.0,111590.0,0.00144625]
[1757483731540,1.90270163,111600.0,111590.0,0.00144625]
[1757483733696,1.88477865,111600.0,111590.0,0.00662625]
[1757483734008,1.85395857,111600.0,111590.0,0.00662625]
[1757483734426,1.85610857,111600.0,111590.0,0.00662625]
[1757483734609,1.85610857,111600.0,111590.0,0.00339625]
[1757483736840,1.85395857,111600.0,111590.0,0.00662625]
[1757483737697,1.84760857,111600.0,111590.0,0.00339625]
[1757483738132,1.84760857,111600.0,111590.0,0.00144625]
[1757483738346,1.85057857,111600.0,111590.0,0.00144625]
[1757483743970,1.67677951,111600.0,111590.0,0.00347625]
[1757483744175,1.84501857,111600.0,111590.0,0.00671625]
[1757483744378,0.664173,111600.0,111590.0,0.18051531]
[1757483744577,0.664173,111600.0,111590.0,0.38953283]
[1757483744578,0.2,111600.0,111590.0,0.38953283]
[1757483744987,0.52703906,111600.0,111590.0,0.00671625]
[1757483745188,0.52703906,111600.0,111590.0,0.18594377]
[1757483745189,0.70083812,111600.0,111590.0,0.18594377]
[1757483745399,0.70083812,111600.0,111590.0,0.18494377]
[1757483745602,0.40131236,111610.0,111600.0,0.17921146]